bitfinex/quotes_SOLUSD_20220129
["timestamp","ask_amount","ask_price","bid_price","bid_amount"]
[1643489076258,47.0248,96.409,96.3,12.52]
[1643489076558,51.914,96.45,96.3,12.52]
[1643489076559,6.0,96.399,96.31,109.8]
[1643489076759,6.0,96.399,96.311,0.25]
[1643489076957,6.0,96.427,96.311,2.4138452]
[1643489077160,42.28155183,96.426,96.312,47.9004]
[1643489077360,15.576,96.42,96.313,0.25]
[1643489077559,43.67605082,96.409,96.322,6.0]
[1643489077761,43.67605082,96.409,96.323,0.25]
[1643489077958,6.0,96.399,96.323,6.25]
[1643489078159,6.0,96.399,96.324,2.1638452]
[1643489078359,6.0,96.399,96.325,0.25]
[1643489078761,6.0,96.399,96.326,2.1638452]
[1643489079163,6.0,96.399,96.327,0.25]
[1643489079559,43.67605082,96.409,96.328,2.1638452]
[1643489079762,43.67605082,96.409,96.329,0.25]
[1643489079961,43.67605082,96.409,96.338,6.0]
[1643489080666,43.67605082,96.409,96.34,6.0]
[1643489081062,43.67605082,96.409,96.341,0.25]
[1643489081765,43.67605082,96.409,96.34,2.1638452]
[1643489082164,0.25,96.408,96.35,6.0]
[1643489082363,0.25,96.408,96.323,2.1638452]
[1643489082765,0.25,96.408,96.324,0.25]
[1643489083165,0.25,96.408,96.325,2.1638452]
[1643489083366,0.25,96.408,96.326,0.25]
[1643489083567,0.25,96.408,96.335,6.0]
[1643489083768,0.25,96.408,96.336,0.25]
[1643489084567,6.0,96.399,96.316,2.1638452]
[1643489084967,32.9059266,96.391,96.27,12.52]
[1643489085167,0.31099419,96.385,96.27,12.52]
[1643489085367,103.8,96.38,96.27,12.52]
[1643489085595,44.16041535,96.369,96.27,12.52]
[1643489085870,47.9813,96.368,96.271,24.4324]
[1643489086067,6.0,96.358,96.271,24.4324]
[1643489086666,6.0,96.358,96.271,24.1824]
[1643489086870,6.0,96.358,96.26,1.41360022]
[1643489087068,6.0,96.358,96.252,1.41360022]
[1643489087069,6.0,96.357,96.252,1.41360022]
[1643489087268,6.0,96.357,96.24,12.52]
[1643489087269,6.0,96.357,96.244,1.41360022]
[1643489087468,6.0,96.357,96.25,6.0]
[1643489087672,6.0,96.356,96.254,6.0]
[1643489087870,34.20490309,96.354,96.25,6.0]
[1643489088073,6.0,96.344,96.256,6.0]
[1643489088272,6.0,96.344,96.257,0.25]
[1643489088672,30.0234,96.343,96.257,0.25]
[1643489089475,30.0234,96.343,96.242,0.25]
[1643489090076,33.88354103,96.339,96.242,0.25]
[1643489090478,6.0,96.329,96.242,0.25]
[1643489093101,0.25,96.328,96.242,0.25]
[1643489094505,0.25,96.328,96.231,1.41360022]
[1643489094706,47.9964,96.328,96.22,12.52]
[1643489094906,47.9964,96.328,96.226,6.0]
[1643489095105,44.73713391,96.317,96.23,6.0]
[1643489095508,44.73713391,96.317,96.232,6.0]
[1643489095711,6.0,96.307,96.232,6.0]
[1643489096308,44.73713391,96.317,96.232,6.0]
[1643489096509,44.73713391,96.317,96.233,6.0]
[1643489096908,44.73713391,96.317,96.234,0.25]
[1643489098112,0.25,96.316,96.234,0.25]
[1643489098520,6.0,96.307,96.234,0.25]
[1643489098813,6.0,96.307,96.233,6.0]
[1643489099014,6.0,96.306,96.233,6.0]
[1643489099215,6.0,96.306,96.234,0.25]
[1643489099421,6.0,96.306,96.224,0.25]
[1643489099917,6.0,96.306,96.23,6.0]
[1643489100514,6.0,96.306,96.22,12.52]
[1643489100922,6.0,96.306,96.23,6.0]
[1643489101317,15.588,96.36,96.233,6.0]
[1643489101616,6.0,96.35,96.262,112.9]
[1643489101819,6.0,96.35,96.263,22.8666]
[1643489102018,6.0,96.35,96.273,6.0]
[1643489102217,34.91697637,96.349,96.273,6.0]
[1643489102519,35.16697637,96.349,96.274,8.4138452]
[1643489102717,35.16697637,96.349,96.274,106.2138452]
[1643489102918,0.25,96.349,96.284,6.0]
[1643489103117,23.8742,96.365,96.285,6.0]
[1643489103418,1.44117487,96.401,96.29,12.52]
[1643489103617,47.8814,96.419,96.3,6.0]
[1643489103819,47.8814,96.419,96.311,103.8]
[1643489104117,32.84654954,96.418,96.321,6.0]
[1643489104317,32.84654954,96.418,96.322,0.25]
[1643489104517,32.84654954,96.418,96.322,6.25]
[1643489104720,6.0,96.408,96.322,6.25]
[1643489104916,6.0,96.408,96.323,8.1638452]
[1643489105121,0.25,96.417,96.323,2.1638452]
[1643489105318,15.58,96.4,96.3,12.52]
[1643489105521,0.32386744,96.369,96.261,1.41360022]
[1643489105719,0.32386744,96.369,96.244,1.41360022]
[1643489105925,0.32386744,96.369,96.222,22.6657]
[1643489105926,0.32386744,96.369,96.236,1.41360022]
[1643489106120,12.52,96.36,96.232,1.41360022]
[1643489106319,103.8,96.358,96.233,23.0295]
[1643489106520,6.0,96.348,96.233,23.0295]
[1643489106720,6.0,96.348,96.263,0.25]
[1643489106928,6.0,96.348,96.233,23.0295]
[1643489107121,34.24364376,96.339,96.243,6.0]
[1643489107321,6.0,96.34,96.25,12.52]
[1643489107521,2.87307545,96.412,96.26,6.0]
[1643489107522,6.0,96.367,96.26,6.0]
[1643489107725,6.0,96.367,96.27,12.52]
[1643489107923,6.0,96.375,96.271,103.8]
[1643489108134,1.44117487,96.403,96.281,6.0]
[1643489108135,6.0,96.377,96.281,6.0]
[1643489108321,46.18426469,96.376,96.282,0.25]
[1643489108521,6.0,96.366,96.29,6.0]
[1643489108920,6.0,96.366,96.291,0.25]
[1643489109323,0.25,96.365,96.291,0.25]
[1643489109527,1.44117487,96.408,96.291,0.25]
[1643489109723,1.44117487,96.408,96.292,2.15933144]
[1643489109924,1.44117487,96.413,96.301,103.8]
[1643489110123,1.44117487,96.416,96.312,103.8]
[1643489110326,46.21890233,96.413,96.313,24.9444]
[1643489110524,6.0,96.403,96.323,6.0]
[1643489110923,0.25,96.402,96.323,6.0]
[1643489111124,0.25,96.402,96.313,24.6944]
[1643489111328,0.25,96.402,96.293,24.6414]
[1643489111527,30.6441,96.402,96.293,24.6414]
[1643489111726,30.6441,96.402,96.294,0.25]
[1643489111925,6.0,96.4,96.294,0.25]
[1643489112125,44.12052796,96.396,96.294,23.3231]
[1643489112327,44.12052796,96.396,96.303,6.0]
[1643489112527,6.0,96.386,96.305,6.0]
[1643489112928,6.0,96.386,96.31,6.0]
[1643489113127,44.12052796,96.396,96.31,6.0]
[1643489113328,39.54829492,96.375,96.294,23.0731]
[1643489113527,6.0,96.365,96.304,6.0]
[1643489114533,6.0,96.365,96.305,0.25]
[1643489114734,6.0,96.365,96.304,6.0]
[1643489115134,6.0,96.365,96.304,4.5]
[1643489115538,6.0,96.365,96.241,72.5982]
[1643489115539,6.0,96.365,96.256,25.05600022]
[1643489115739,6.0,96.365,96.245,1.41360022]
[1643489115740,47.8287,96.364,96.245,1.41360022]
[1643489115937,0.31816727,96.343,96.23,1.41360022]
[1643489116138,0.31816727,96.343,96.221,0.00626848]
[1643489116539,6.0,96.338,96.221,0.00626848]
[1643489116739,40.50392123,96.329,96.221,0.00626848]
[1643489117037,6.0,96.319,96.221,0.00626848]
[1643489121565,0.25,96.318,96.221,0.00626848]
[1643489121765,35.06977726,96.309,96.221,0.00626848]
[1643489122166,6.0,96.299,96.221,0.00626848]
[1643489122565,6.0,96.298,96.221,0.00626848]
[1643489122965,0.3181211,96.276,96.221,0.00626848]
[1643489123564,35.71393002,96.267,96.221,0.00626848]
[1643489123965,6.0,96.257,96.221,0.00626848]
[1643489125368,46.51566615,96.249,96.221,0.00626848]
[1643489125971,6.0,96.239,96.221,0.00626848]
[1643489126370,63.31755821,96.222,96.221,0.00626848]
[1643489126572,0.31755821,96.222,96.221,0.00253696]
[1643489126768,12.52,96.23,96.221,0.00253696]
[1643489126969,6.0,96.228,96.221,0.00253696]
[1643489127169,12.52,96.23,96.221,0.00253696]
[1643489127369,23.8762,96.238,96.221,0.00253696]
[1643489127575,6.0,96.228,96.221,0.00507392]
[1643489128372,63.0,96.226,96.221,0.00014784]
[1643489128771,23.6886,96.225,96.221,0.00014784]
[1643489128972,63.0,96.224,96.148,0.00956394]
[1643489129272,12.52,96.21,96.148,0.00956394]
[1643489129471,44.2288596,96.209,96.148,0.00956394]
[1643489129670,6.0,96.2,96.148,0.00956394]
[1643489129872,6.0,96.199,96.148,0.00956394]
[1643489130070,6.0,96.198,96.148,0.00956394]
[1643489131971,15.614,96.19,96.148,0.00956394]
[1643489132170,34.19781502,96.189,96.148,0.00956394]
[1643489132371,6.0,96.18,96.148,0.00956394]
[1643489132570,34.19781502,96.189,96.148,0.00956394]
[1643489132571,6.0,96.179,96.148,0.00956394]
[1643489132970,63.0,96.178,96.088,0.36860592]
[1643489133172,63.0,96.178,96.04,1.41360022]
[1643489133173,0.30751122,96.155,96.04,1.41360022]
[1643489133374,0.32407517,96.13,96.04,0.41360022]
[1643489133676,37.45481712,96.111,96.005,438.99691146]
[1643489134072,6.0,96.101,96.025,112.9]
[1643489135477,6.0,96.101,96.026,2.15950005]
[1643489135979,6.0,96.1,96.026,2.15950005]
[1643489136578,6.0,96.1,95.998,15.96028684]
[1643489136579,6.0,96.1,95.998,18.12966676]
[1643489136879,43.31357127,96.089,95.986,2.16937992]
[1643489137081,6.0,96.079,95.974,15.96028684]
[1643489137681,6.0,96.079,95.951,15.96028684]
[1643489137883,15.633,96.07,95.975,2.16937992]
[1643489138111,12.52,96.09,95.985,6.0]
[1643489138282,12.52,96.11,95.985,6.0]
[1643489138485,6.0,96.08,95.986,15.96028684]
[1643489138683,6.0,96.08,95.986,21.96028684]
[1643489138884,6.0,96.08,95.987,0.25]
[1643489139084,15.63,96.09,95.987,0.25]
[1643489139284,44.69655184,96.079,95.968,0.25]
[1643489139485,44.69655184,96.079,95.977,6.0]
[1643489139683,6.0,96.069,95.977,6.0]
[1643489140084,6.0,96.069,95.969,15.96028684]
[1643489140485,43.659157,96.059,95.969,15.96028684]
[1643489140886,0.25,96.089,95.969,15.96028684]
[1643489141088,63.0,96.087,95.95,39.02968182]
[1643489141289,63.0,96.087,95.936,190.1]
[1643489141290,0.31311072,96.073,95.946,2.16789498]
[1643489141490,0.31311072,96.073,95.87,52.112]
[1643489141491,0.32263888,96.039,95.883,582.57071216]
[1643489141697,0.32263888,96.039,95.883,468.16553424]
[1643489141895,0.32263888,96.039,95.883,325.16553424]
[1643489141896,12.52,96.03,95.883,325.16553424]
[1643489142195,156.54,95.97,95.843,61.8280357]
[1643489142394,156.54,95.95,95.843,61.8280357]
[1643489142595,156.54,95.93,95.793,62.56882565]
[1643489142893,156.54,95.91,95.793,62.56882565]
[1643489143096,21.666,95.9,95.793,28.36882565]
[1643489143300,34.186,95.9,95.793,28.36882565]
[1643489143492,0.3203288,95.863,95.793,19.36882565]
[1643489143691,0.3203288,95.863,95.675,78.148]
[1643489143692,169.06,95.85,95.789,0.0038261]
[1643489143891,169.06,95.85,95.793,0.004698]
[1643489143892,0.30883666,95.838,95.793,0.004698]
[1643489144099,169.06,95.83,95.793,0.004698]
[1643489144299,156.54,95.81,95.65,2.78417935]
[1643489144501,6.0,95.84,95.789,3.604698]
[1643489144502,156.54,95.79,95.789,3.604698]
[1643489144711,175.06,95.8,95.721,336.34643815]
[1643489144898,6.0,95.78,95.721,187.88121347]
[1643489145092,6.0,95.78,95.591,5.0]
[1643489145093,2.95669142,95.765,95.591,5.0]
[1643489145296,33.18487102,95.799,95.463,76.7103]
[1643489145297,156.54,95.7,95.571,5.0]
[1643489145502,0.32140038,95.762,95.571,2.5]
[1643489145503,175.06,95.69,95.571,2.5]
[1643489145725,15.692,95.76,95.689,3.0]
[1643489146037,6.0,95.68,95.47,2.78417935]
[1643489146227,6.0,95.68,95.531,103.8]
[1643489146228,0.32336935,95.667,95.531,103.8]
[1643489146432,12.52,95.66,95.493,13.70496197]
[1643489146728,6.0,95.65,95.537,14.74922035]
[1643489146924,2.95669142,95.712,95.649,3.0]
[1643489147125,0.00641327,95.675,95.497,45.5104431]
[1643489147326,12.52,95.66,95.5,15.86734716]
[1643489147526,12.52,95.66,95.497,45.5104431]
[1643489147527,0.00669142,95.611,95.497,45.5104431]
[1643489147726,0.00579912,95.646,95.61,3.0]
[1643489147928,6.0,95.65,95.611,40.50051178]
[1643489147929,12.52,95.64,95.611,40.50051178]
[1643489148129,12.52,95.63,95.611,44.27417317]
[1643489148326,49.46160481,95.882,95.499,37.60758326]
[1643489148327,26.28005002,95.719,95.499,37.60758326]
[1643489148528,12.21,95.71,95.501,63.0]
[1643489148731,0.30087635,95.728,95.727,3.0]
[1643489148928,15.698,95.74,95.511,6.0]
[1643489149129,0.008,95.74,95.512,6.0]
[1643489149328,0.3085039,95.834,95.513,0.25]
[1643489149529,0.30173904,95.809,95.793,3.0]
[1643489149731,0.30173904,95.809,95.58,12.52]
[1643489149930,0.30173904,95.809,95.59,12.52]
[1643489150129,0.32035889,95.881,95.793,3.0]
[1643489150335,0.32035889,95.881,95.63,12.52]
[1643489150336,28.209,95.82,95.63,12.52]
[1643489150529,28.209,95.82,95.64,6.0]
[1643489150732,28.209,95.82,95.793,3.0]
[1643489150929,0.30704835,95.819,95.641,11.12846029]
[1643489151131,0.31562837,95.794,95.641,11.12846029]
[1643489151330,12.52,95.79,95.602,10.39472866]
[1643489151537,0.30360333,95.75,95.582,10.39472866]
[1643489151734,45.11947565,95.749,95.582,10.39472866]
[1643489151933,45.11947565,95.749,95.55,12.52]
[1643489152130,12.82360333,95.75,95.441,49.4856799]
[1643489152131,19.64817189,95.75,95.748,3.0]
[1643489152330,12.52,95.79,95.748,3.0]
[1643489152533,15.683,95.83,95.748,3.0]
[1643489152734,12.52,95.86,95.748,3.0]
[1643489152931,103.8,95.922,95.749,0.25]
[1643489153134,0.31694233,95.918,95.749,0.25]
[1643489153332,0.31694233,95.918,95.748,3.0]
[1643489153333,0.31644455,95.879,95.748,3.0]
[1643489153535,0.32190712,95.853,95.748,3.0]
[1643489153734,0.30643384,95.849,95.748,3.0]
[1643489154034,0.30643384,95.849,95.444,2.78417935]
[1643489154035,6.0,95.84,95.61,12.52]
[1643489154236,0.31089001,95.793,95.6,12.52]
[1643489154432,0.3082956,95.773,95.601,0.1]
[1643489154632,0.30405769,95.743,95.581,0.1]
[1643489154831,0.30405769,95.743,95.57,12.12]
[1643489155039,45.59243797,95.729,95.57,12.12]
[1643489155244,45.59243797,95.729,95.571,0.25]
[1643489155433,6.0,95.75,95.729,6.67]
[1643489155633,6.0,95.77,95.729,2.67]
[1643489155840,18.52,95.77,95.62,12.52]
[1643489156135,0.30775223,95.728,95.581,24.4385]
[1643489156535,0.30775223,95.728,95.727,3.0]
[1643489156740,0.30775223,95.728,95.581,24.4385]
[1643489157237,6.0,95.728,95.581,24.4385]
[1643489157438,6.0,95.728,95.591,6.0]
[1643489157636,6.0,95.728,95.592,6.0]
[1643489157834,35.0,95.727,95.581,24.4385]
[1643489158036,35.0,95.727,95.444,103.8]
[1643489158037,0.32334601,95.682,95.444,103.8]
[1643489158436,0.32334601,95.682,95.681,3.0]
[1643489158635,0.32334601,95.682,95.492,16.87526045]
[1643489158933,6.0,95.679,95.502,6.0]
[1643489159137,6.0,95.679,95.678,3.0]
[1643489159534,8.95669142,95.679,95.53,12.52]
[1643489159738,2.95669142,95.679,95.54,6.0]
[1643489159937,72.9181,95.756,95.678,3.0]
[1643489160135,12.52,95.72,95.678,3.0]
[1643489160439,12.52,95.74,95.678,3.0]
[1643489160838,37.26148613,95.739,95.678,3.0]
[1643489161037,12.52,95.74,95.678,3.0]
[1643489161842,104.05,95.739,95.56,12.52]
[1643489162044,0.31305473,95.692,95.532,22.7017]
[1643489162238,12.52,95.68,95.532,22.7017]
[1643489162438,0.31579869,95.66,95.532,22.7017]
[1643489163041,0.30342421,95.635,95.47,12.52]
[1643489163239,44.79204947,95.629,95.421,78.6052]
[1643489163443,103.8,95.628,95.462,0.15303906]
[1643489163647,0.31418315,95.602,95.462,0.15303906]
[1643489163840,12.52,95.59,95.462,0.15303906]
[1643489164042,6.0,95.58,95.462,0.15303906]
[1643489164445,6.0,95.579,95.462,0.15303906]
[1643489164645,12.52,95.57,95.462,0.15303906]
[1643489164844,44.4472023,95.569,95.462,0.15303906]
[1643489165246,6.0,95.559,95.462,0.15303906]
[1643489165645,6.0,95.559,95.558,3.0]
[1643489165954,80.10956778,95.666,95.558,3.0]
[1643489166147,12.52,95.61,95.558,3.0]
[1643489166347,15.713,95.67,95.558,3.0]
[1643489166548,169.06,95.66,95.558,3.0]
[1643489166749,12.52,95.65,95.558,3.0]
[1643489167757,12.52,95.65,95.559,0.25]
[1643489167955,39.72618367,95.659,95.568,6.0]
[1643489168154,39.72618367,95.659,95.558,3.0]
[1643489168756,42.68287509,95.659,95.558,3.0]
[1643489169461,42.68287509,95.659,95.442,71.8118]
[1643489169462,10.89835495,95.658,95.442,71.8118]
[1643489169657,156.54,95.63,95.442,71.8118]
[1643489169860,12.52,95.62,95.442,71.8118]
[1643489170064,12.52,95.62,95.619,3.0]
[1643489170257,12.52,95.62,95.442,71.8118]
[1643489170461,2.95669142,95.619,95.442,24.2562]
[1643489170661,156.54,95.61,95.452,6.0]
[1643489170859,0.30200998,95.581,95.409,0.1]
[1643489171056,169.06,95.57,95.396,2.78417935]
[1643489171258,172.273,95.56,95.384,2.78417935]
[1643489171458,12.52,95.55,95.378,2.78417935]
[1643489171659,44.48645792,95.549,95.378,2.78417935]
[1643489171870,50.48645792,95.549,95.548,3.0]
[1643489172173,53.44314934,95.549,95.406,0.32414139]
[1643489172372,50.48645792,95.549,95.407,2.78417935]
[1643489172569,50.48645792,95.549,95.388,6.0]
[1643489172570,12.52,95.54,95.405,2.78417935]
[1643489172772,103.8,95.539,95.39,2.78417935]
[1643489172969,103.8,95.539,95.388,6.0]
[1643489173175,2.95669142,95.538,95.388,6.0]
[1643489173371,103.8,95.537,95.373,6.0]
[1643489173570,114.94835495,95.537,95.373,6.0]
[1643489173772,48.0,95.536,95.354,2.78417935]
[1643489173974,156.54,95.52,95.354,2.78417935]
[1643489174172,12.52,95.51,95.342,2.88417935]
[1643489174371,33.80340972,95.509,95.342,0.1]
[1643489174569,36.76010114,95.509,95.508,3.0]
[1643489174771,45.68398689,95.509,95.348,2.78417935]
[1643489174968,2.95669142,95.508,95.342,0.1]
[1643489175169,14.83726859,95.508,95.342,0.1]
[1643489175372,156.54,95.5,95.342,0.1]
[1643489175574,36.7478243,95.488,95.342,0.1]
[1643489175773,36.7478243,95.488,95.487,3.0]
[1643489175971,103.8,95.487,95.462,0.30607812]
[1643489176176,118.63726859,95.487,95.462,0.30607812]
[1643489176471,14.83726859,95.486,95.341,18.82543906]
[1643489176874,156.54,95.46,95.307,2.78417935]
[1643489177072,156.54,95.46,95.282,98.7007]
[1643489177073,12.52,95.45,95.322,2.78417935]
[1643489177378,12.52,95.45,95.449,3.0]
[1643489177772,12.52,95.45,95.318,2.78417935]
[1643489177974,12.52,95.45,95.305,2.78417935]
[1643489178173,12.52,95.45,95.32,6.0]
[1643489178375,6.23766937,95.449,95.315,6.0]
[1643489178576,9.19436079,95.449,95.312,6.0]
[1643489178773,6.23766937,95.448,95.312,6.0]
[1643489178978,9.19436079,95.448,95.295,6.0]
[1643489179174,6.23766937,95.447,95.298,6.0]
[1643489179374,12.52,95.45,95.299,0.25]
[1643489179577,110.03766937,95.449,95.334,0.05936474]
[1643489179776,6.23766937,95.448,95.334,0.05936474]
[1643489179983,6.23766937,95.448,95.447,3.0]
[1643489180179,6.23766937,95.448,95.334,0.05936474]
[1643489180377,103.8,95.447,95.334,0.05936474]
[1643489180582,7.99260227,95.446,95.334,0.05936474]
[1643489180877,11.19929369,95.446,95.334,0.05936474]
[1643489181080,38.86175172,95.444,95.334,0.05936474]
[1643489181277,103.8,95.428,95.334,0.05936474]
[1643489181478,7.99260227,95.427,95.426,3.0]
[1643489181778,22.82987086,95.427,95.334,0.05936474]
[1643489181979,7.99260227,95.426,95.334,0.05936474]
[1643489182180,103.8,95.425,95.334,0.05936474]
[1643489182382,33.2010614,95.429,95.425,3.0]
[1643489182582,15.743,95.52,95.425,3.0]
[1643489182583,53.04096415,95.447,95.425,3.0]
[1643489182780,53.04096415,95.459,95.425,3.0]
[1643489182980,103.8,95.462,95.334,0.05936474]
[1643489183181,12.52,95.45,95.334,0.05936474]
[1643489183583,39.01447236,95.449,95.334,0.05936474]
[1643489183786,103.8,95.447,95.334,0.05936474]
[1643489183983,6.0,95.439,95.334,0.05936474]
[1643489184287,40.04195344,95.429,95.334,0.05936474]
[1643489184481,103.8,95.428,95.334,0.05936474]
[1643489184685,0.30652423,95.396,95.334,0.05936474]
[1643489184881,44.70534588,95.389,95.334,0.05936474]
[1643489185084,51.94000983,95.388,95.334,0.05936474]
[1643489185281,51.94000983,95.387,95.334,0.05936474]
[1643489185481,51.94000983,95.387,95.23,0.9]
[1643489185482,2.95669142,95.388,95.315,2.20718352]
[1643489185681,51.94000983,95.388,95.315,2.20718352]
[1643489185883,51.94000983,95.388,95.285,2.20718352]
[1643489186082,44.70534588,95.389,95.25,12.52]
[1643489186282,44.70534588,95.389,95.26,6.0]
[1643489186483,51.27753971,95.388,95.25,12.52]
[1643489186683,6.0,95.379,95.23,13.42]
[1643489186883,51.27753971,95.378,95.24,6.0]
[1643489187084,44.70534588,95.389,95.24,6.0]
[1643489187085,44.70534588,95.389,95.292,2.20718352]
[1643489187282,0.00534588,95.389,95.292,2.52890462]
[1643489187486,3.0,95.445,95.302,6.0]
[1643489187687,12.52,95.43,95.302,6.0]
[1643489187885,51.27753971,95.429,95.302,6.0]
[1643489188085,51.27753971,95.428,95.281,6.0]
[1643489188284,12.52,95.43,95.281,6.0]
[1643489188285,3.0,95.42,95.296,2.21752211]
[1643489188488,6.0,95.41,95.296,2.21752211]
[1643489188688,6.0,95.41,95.23,1.0]
[1643489188689,44.16673705,95.399,95.23,0.9]
[1643489188895,95.64859273,95.399,95.23,0.9]
[1643489189084,51.48185568,95.398,95.23,0.9]
[1643489189286,51.48185568,95.398,95.238,2.21752211]
[1643489189589,44.16673705,95.399,95.259,0.31570378]
[1643489189785,51.48185568,95.398,95.259,0.31570378]
[1643489189986,51.48185568,95.398,95.25,6.0]
[1643489190191,51.48185568,95.398,95.226,0.1]
[1643489190386,51.48185568,95.398,95.222,0.1]
[1643489190586,44.16673705,95.399,95.245,0.31555029]
[1643489190986,44.16673705,95.399,95.273,2.22553464]
[1643489191389,3.0,95.471,95.283,6.0]
[1643489191589,50.46385048,95.463,95.307,0.30732303]
[1643489191791,3.0,95.471,95.307,0.30732303]
[1643489191792,50.46385048,95.462,95.33,0.30148011]
[1643489191986,3.0,95.471,95.358,0.31048404]
[1643489192190,50.46385048,95.47,95.358,13.99048404]
[1643489192386,3.0,95.471,95.36,63.0]
[1643489192591,79.805,95.583,95.407,0.3067841]
[1643489192799,50.42005218,95.582,95.407,0.3067841]
[1643489192991,50.42005218,95.582,95.417,0.3028041]
[1643489193189,2.95669142,95.581,95.417,0.3028041]
[1643489193386,39.3509652,95.58,95.417,0.3028041]
[1643489193587,89.77101738,95.58,95.417,0.3028041]
[1643489193786,89.77101738,95.58,95.38,12.52]
[1643489193787,50.42005218,95.579,95.411,0.25]
[1643489193987,129.3052436,95.579,95.39,16.23332059]
[1643489194190,68.07357832,95.578,95.39,6.0]
[1643489194387,27.48546883,95.577,95.412,2.29006298]
[1643489194590,27.48546883,95.577,95.434,0.31607205]
[1643489194793,27.35416636,95.632,95.464,0.32252533]
[1643489194992,27.48546883,95.631,95.47,12.52]
[1643489195188,27.48546883,95.63,95.495,0.30473937]
[1643489195392,27.33879026,95.643,95.517,0.31449781]
[1643489195590,27.48546883,95.661,95.5,6.0]
[1643489195789,34.76109163,95.642,95.521,0.30401377]
[1643489195990,27.48546883,95.641,95.501,6.0]
[1643489196190,27.48546883,95.641,95.44,146.721]
[1643489196191,30.44216025,95.641,95.45,12.52]
[1643489196389,30.44216025,95.641,95.44,69.6004]
[1643489196390,27.48546883,95.64,95.44,23.2201]
[1643489196588,88.84093383,95.64,95.383,2.78417935]
[1643489196790,42.0451433,95.572,95.383,2.78417935]
[1643489196988,42.0451433,95.572,95.373,50.51580285]
[1643489196989,27.01930636,95.571,95.402,0.31969482]
[1643489197190,27.01930636,95.571,95.431,0.32377847]
[1643489197691,27.01930636,95.571,95.42,6.0]
[1643489197896,17.65352614,95.57,95.42,6.0]
[1643489198125,42.0451433,95.572,95.449,0.31043789]
[1643489198494,42.0451433,95.572,95.45,6.0]
[1643489198795,27.05902947,95.571,95.45,8.31487974]
[1643489198997,42.0451433,95.572,95.45,6.0]
[1643489199198,27.05902947,95.571,95.415,2.31487974]
[1643489199394,42.0451433,95.572,95.415,2.31487974]
[1643489199595,27.05902947,95.571,95.425,6.0]
[1643489199795,27.05902947,95.571,95.402,2.31487974]
[1643489199995,27.05902947,95.571,95.412,6.0]
[1643489200399,17.90352614,95.57,95.39,6.0]
[1643489200595,103.8,95.569,95.39,6.0]
[1643489200798,28.29771251,95.568,95.39,6.0]
[1643489201000,28.29771251,95.568,95.391,2.31487974]
[1643489201197,0.25,95.57,95.424,0.32478391]
[1643489201404,28.29771251,95.569,95.41,12.52]
[1643489201600,28.29771251,95.569,95.373,151.146]
[1643489201798,28.29771251,95.569,95.38,0.25]
[1643489201799,72.3865,95.568,95.38,0.25]
[1643489201999,28.29771251,95.567,95.373,151.146]
[1643489202300,72.3865,95.568,95.38,17.69407761]
[1643489202501,0.25,95.57,95.4,0.30305802]
[1643489202700,42.0451433,95.572,95.41,12.52]
[1643489202903,42.0451433,95.572,95.429,0.30067359]
[1643489203302,42.0451433,95.572,95.43,12.52]
[1643489203501,42.0451433,95.572,95.44,6.0]
[1643489203903,42.0451433,95.572,95.441,0.25]
[1643489204102,42.0451433,95.572,95.455,0.31780978]